[Event "Polish Youth G18 Championship 2023"]
[Site "Jastrzebia Gora"]
[Date "2023.03.15"]
[Round "5.20"]
[White "Nagly, Malgorzata"]
[Black "Tittor, Weronika"]
[Result "0-1"]
[ECO "B27"]
[WhiteElo "1041"]
[BlackElo "1226"]
[Annotator "NA RC COMBH"]
[PlyCount "100"]
[EventDate "2023.03.11"]
[EventType "swiss"]
[EventCountry "POL"]
[SourceTitle "playchess.com"]
[Source "ChessBase"]
[SourceQuality "1"]
[TimeControl "40/5400+30:1800+30"]

1. e4 {[%emt 0:00:01]} c5 {[%emt 0:01:27]} 2. Nf3 {[%emt 0:00:08]} g6 {[%emt 0:02:20]} 3. c3 {[%emt 0:00:08]} d5 {[%emt 0:02:52]} 4. e5 {[%emt 0:00:50]} d4 {[%emt 0:04:19]} 5. cxd4 {[%emt 0:04:47]} cxd4 {[%emt 0:02:13]} 6. Qa4+ {[%emt 0:01:18]} Nc6 {[%emt 0:03:25]} 7. Bb5 {[%emt 0:02:04]} Bd7 {[%emt 0:02:37]} 8. Bxc6 {[%emt 0:04:30]} Bxc6 {[%emt 0:02:30]} 9. Qxd4 {[%emt 0:02:05]} Qxd4 {[%emt 0:02:24]} 10. Nxd4 {[%emt 0:00:03]} Bxg2 {[%emt 0:02:30]} 11. Rg1 {[%emt 0:01:00]} Bd5 {[%emt 0:02:45]} 12. Nc3 {[%emt 0:06:34]} Bc4 {[%emt 0:03:36]} 13. b3 {[%emt 0:16:20]} Ba6 {[%emt 0:04:07]} 14. Bb2 {[%emt 0:06:06]} Bg7 {[%emt 0:04:23]} 15. f4 {[%emt 0:03:37]} Nh6 {[%emt 0:04:14]} 16. Rc1 {[%emt 0:05:46]} O-O {[%emt 0:02:19]} 17. Nd5 {[%emt 0:12:18]} e6 {[%emt 0:07:16]} 18. Nc7 {[%emt 0:04:47]} Rac8 {[%emt 0:02:37]} 19. Kf2 {[%emt 0:02:48]} Bd3 {[%emt 0:02:20]} 20. Ke3 {[%emt 0:03:13]} Bf5 {[%emt 0:01:43]} 21. Rh1 {[%emt 0:06:32]} Rfd8 {[%emt 0:02:07]} 22. Ncb5 {[%emt 0:06:44]} Ra8 {[%emt 0:03:40]} 23. Nd6 {[%emt 0:00:57]} f6 {[%emt 0:02:36]} 24. N4b5 {[%emt 0:03:53]} fxe5 {[%emt 0:02:45]} 25. fxe5 {[%emt 0:01:13]} Ng4+ {[%emt 0:02:44]} 26. Ke2 {[%emt 0:03:48]} Nxe5 {[%emt 0:03:01]} 27. Bxe5 {[%emt 0:00:01]} Bxe5 {[%emt 0:00:24]} 28. Nxb7 {[%emt 0:00:04]} Rdb8 {[%emt 0:01:02]} 29. N7d6 {[%emt 0:01:55]} Bg4+ {[%emt 0:01:06]} 30. Ke3 {[%emt 0:00:22]} a6 {[%emt 0:01:32]} 31. d4 {[%emt 0:00:05]} Bg7 {[%emt 0:00:53]} 32. Nc7 {[%emt 0:00:09]} Ra7 {[%emt 0:01:32]} 33. h3 {[%emt 0:00:03]} Bh6+ {[%emt 0:00:32]} 34. Ke4 {[%emt 0:01:54]} Bxc1 {[%emt 0:00:56]} 35. Rxc1 {[%emt 0:00:01]} Bxh3 {[%emt 0:00:16]} 36. Ke5 {[%emt 0:00:02]} Rb4 {[%emt 0:04:10]} 37. Ne4 {[%emt 0:01:58]} h6 {[%emt 0:03:33]} 38. Rh1 {[%emt 0:00:46]} Bg2 {[%emt 0:00:48]} 39. Nf6+ {[%emt 0:00:29]} Kg7 {[%emt 0:01:09]} 40. Rg1 {[%emt 0:00:00]} Bh3 {[%emt 0:00:00]} 41. Rg3 {[%emt 0:04:10]} Bf5 {[%emt 0:05:17]} 42. Nce8+ {[%emt 0:01:25]} Kf7 {[%emt 0:02:08]} 43. Rc3 {[%emt 0:02:59]} h5 {[%emt 0:05:18]} 44. a3 {[%emt 0:06:04]} Rb8 {[%emt 0:02:57]} 45. b4 {[%emt 0:01:41]} Rxe8 {[%emt 0:01:36]} 46. Nxe8 {[%emt 0:00:36]} Kxe8 {[%emt 0:00:07]} 47. Rc8+ {[%emt 0:00:28]} Kf7 {[%emt 0:00:27]} 48. Rh8 {[%emt 0:01:13]} Kg7 {[%emt 0:00:16]} 49. Rc8 {[%emt 0:00:42]} h4 {[%emt 0:01:14]} 50. Rc2 {[%emt 0:00:26]} Bxc2 {[%emt 0:00:07]} 0-1

[Event "Polish Youth G18 Championship 2023"]
[Site "Jastrzebia Gora"]
[Date "2023.03.18"]
[Round "8.1"]
[White "Skolska, Emilia"]
[Black "Goraj, Barbara"]
[Result "1/2-1/2"]
[ECO "B23"]
[WhiteElo "1586"]
[BlackElo "2130"]
[Annotator "TA"]
[PlyCount "98"]
[EventDate "2023.03.11"]
[EventType "swiss"]
[EventCountry "POL"]
[SourceTitle "playchess.com"]
[Source "ChessBase"]
[SourceQuality "1"]
[TimeControl "40/5400+30:1800+30"]

{[%evp 12,98,0,-11,0,-26,-19,-1,-17,-2,-27,-18,-19,-7,-10,-11,-13,-10,-14,-13,-11,-30,-24,-19,0,-27,-34,-48,-46,-46,-46,-47,-46,-41,-44,-52,-52,-45,-46,-46,-20,-20,-16,-33,-19,-37,-13,-32,-32,-32,-32,-34,-34,-34,-32,-34,-34,-34,-34,-34,-34,-34,-32,-33,-33,-33,-33,-53,-54,-54,-54,-54,-54,-54,-54,-54,-37,-37,-37,-37,0,-37,-33,-33,-33,-33,-33,-33,-33]} 1. e4 {[%emt 0:00:02]} c5 {[%emt 0:00:09]} 2. Nc3 {[%emt 0:00:06]} Nc6 {[%emt 0:00:16]} 3. f4 {[%emt 0:00:11]} g6 {[%emt 0:00:10]} 4. Nf3 {[%emt 0:00:14]} Bg7 {[%emt 0:00:23]} 5. Bb5 {[%emt 0:00:17]} Nd4 {[%emt 0:00:33]} 6. O-O {[%emt 0:00:31]} Nxb5 {[%emt 0:00:38]} 7. Nxb5 {[%emt 0:00:12]} d5 {[%emt 0:00:32] B23: Closed Sicilian: Lines without g3.} 8. exd5 {[%emt 0:00:17]} a6 {[%emt 0:00:56]} 9. Nc3 {[%emt 0:00:20]} Nf6 {[%emt 0:00:15][%cal Bg8f6,Bf6d5,Bd5c3][%mdl 32] The position is equal.} 10. d4 {[%emt 0:00:28]} Nxd5 $1 {[%emt 0:00:51] 10...Nxd5 scores better than 10...c4.} 11. dxc5 {[%emt 0:00:20]} Nxc3 {[%emt 0:01:02]} 12. Qxd8+ {[%emt 0:00:16]} Kxd8 {[%emt 0:00:07]} 13. bxc3 {[%emt 0:00:04]} Bxc3 {[%emt 0:00:08]} 14. Rb1 {[%emt 0:00:05]} Kc7 {[%emt 0:02:46]} 15. Rb3 {[%emt 0:00:31]} Bf6 {[%emt 0:01:06]} 16. Bd2 {[%emt 0:00:36]} a5 {[%emt 0:01:36]} 17. Rfb1 {[%emt 0:00:42]} Ra7 {[%emt 0:04:15]} 18. Rb5 {[%emt 0:04:46]} Bd7 {[%emt 0:11:19]} 19. Rb6 {[%emt 0:09:39]} Bc6 {[%emt 0:12:39] A strong pair of Bishops.} 20. Ne5 {[%emt 0:12:16]} Bxe5 {[%emt 0:08:06]} 21. fxe5 {[%emt 0:00:08] [#]} Kd7 $146 {[%emt 0:08:12]} ({Predecessor:} 21... Rd8 22. Be3 Rd7 23. e6 fxe6 24. Bf4+ Kd8 25. Rxc6 e5 26. Bxe5 Rd5 27. Bc7+ Kd7 28. Bb6 {1-0 Fiedler,L (1994)-Petzold,V (1973) Mittelfranken-chTB1 1617 2016 (9.3)}) 22. Bc3 {[%emt 0:07:04][%cal Oe5e6]} Ke6 {[%emt 0:00:32]} 23. Bd4 {[%emt 0:01:28]} Rd8 {[%emt 0:09:23]} 24. c3 {[%emt 0:00:15]} h5 {[%emt 0:07:56]} 25. g3 {[%emt 0:13:54]} f5 {[%emt 0:03:17]} 26. exf6 {[%emt 0:08:16]} exf6 {[%emt 0:00:22]} 27. Rf1 {[%emt 0:03:12]} f5 {[%emt 0:00:52]} 28. Re1+ {[%emt 0:00:37]} Kf7 {[%emt 0:00:26]} (28... Kd5 {is interesting.} 29. Bf6 Rd7 30. Bd4 Ra8) 29. Re5 {[%emt 0:01:58]} Raa8 {[%emt 0:01:58]} 30. Rb2 {[%emt 0:09:40]} Re8 {[%emt 0:02:05]} 31. Rbe2 {[%emt 0:00:06]} Rxe5 {[%emt 0:01:51]} 32. Rxe5 $15 {[%emt 0:00:06][%mdl 4096] Endgame KRB-KRB} Be4 {[%emt 0:02:04]} 33. h4 {[%emt 0:01:35]} a4 {[%emt 0:00:51]} 34. a3 {[%emt 0:02:22]} Ra5 {[%emt 0:06:08]} 35. c6 {[%emt 0:00:48]} Rxe5 {[%emt 0:00:44]} 36. Bxe5 {[%emt 0:00:04]} bxc6 {[%emt 0:01:12] KB-KB} 37. Bd6 {[%emt 0:01:37]} Ke6 {[%emt 0:00:18]} 38. Bb4 {[%emt 0:00:42]} Kd5 {[%emt 0:02:05]} 39. Ba5 {[%emt 0:10:12]} Kc4 {[%emt 0:03:27]} 40. Kf2 {[%emt 0:00:00]} Kd3 {[%emt 0:00:00]} 41. Bb4 {[%emt 0:02:10]} Bh1 {[%emt 0:00:58]} 42. Kg1 {[%emt 0:00:34]} Bd5 {[%emt 0:00:55]} 43. Kf2 {[%emt 0:00:11]} Kc4 {[%emt 0:02:19]} 44. Ba5 $1 {[%emt 0:00:39]} Kb5 {[%emt 0:00:35]} 45. Bc7 {[%emt 0:00:34]} Kc4 {[%emt 0:00:57]} 46. Ba5 $1 {[%emt 0:00:07]} c5 {[%emt 0:00:42] [#] ...Kb3 is the strong threat. Black is slightly better.} 47. Bb6 {[%emt 0:00:30]} Kxc3 {[%emt 0:00:22] Strongly threatening ...c4.} 48. Bxc5 {[%emt 0:00:05]} Kd3 {[%emt 0:00:05]} 49. Bd6 {[%emt 0:00:24]} Be4 {[%emt 0:00:07] Weighted Error Value: White=0.05 (flawless) /Black=0.04 (flawless)} 1/2-1/2

[Event "Polish Youth G18 Championship 2023"]
[Site "Jastrzebia Gora"]
[Date "2023.03.18"]
[Round "8.3"]
[White "Kucharska, Helena"]
[Black "Hertlein, Irena"]
[Result "1/2-1/2"]
[ECO "B01"]
[WhiteElo "1779"]
[BlackElo "1994"]
[Annotator "TA"]
[PlyCount "52"]
[EventDate "2023.03.11"]
[EventType "swiss"]
[EventCountry "POL"]
[SourceTitle "playchess.com"]
[Source "ChessBase"]
[SourceQuality "1"]
[TimeControl "40/5400+30:1800+30"]

{[%evp 10,52,16,-16,0,0,0,0,0,0,19,2,16,0,2,0,0,0,0,-297,0,0,0,0,0,0,0,0,0,0,0,0,0,0,0,0,0,0,0,0,0,0,0,0,0]} 1. e4 {[%emt 0:00:53]} d5 {[%emt 0:00:05]} 2. exd5 {[%emt 0:01:40]} Qxd5 {[%emt 0:00:06]} 3. Nf3 {[%emt 0:01:22]} Bg4 {[%emt 0:00:37]} 4. Be2 {[%emt 0:00:17]} Nc6 {[%emt 0:00:21]} 5. d4 {[%emt 0:01:51][%cal Bd2d4,Bd4d5][%mdl 32]} O-O-O {[%emt 0:00:23]} 6. c4 {[%emt 0:09:39]} (6. Nc3 $5 {[%cal Rc3d5]} Qf5 7. h3 Bxf3 {[%mdl 64] Remove Defender} 8. Bxf3 $14) 6... Qd7 {[%emt 0:00:32][%cal Og4f3] B01: Scandinavian Defence.} 7. d5 {[%emt 0:07:25]} Bxf3 {[%emt 0:02:51]} 8. Bxf3 {[%emt 0:01:44]} Ne5 {[%emt 0:01:18][%cal Oe7e6]} 9. O-O {[%emt 0:01:41]} Nf6 {[%emt 0:02:35][%cal Oe7e6]} 10. Nc3 {[%emt 0:03:50]} e6 {[%emt 0:01:57]} 11. Bf4 {[%emt 0:07:01]} (11. Be3 {simplifies} Nxf3+ 12. Qxf3 exd5 13. Nxd5 Qg4 14. Qxg4+ Nxg4 15. Bxa7 b6 16. a4) 11... Bd6 {[%emt 0:01:22]} 12. Nb5 {[%emt 0:05:05]} Nxf3+ {[%emt 0:12:06]} 13. Qxf3 {[%emt 0:01:52]} Bxf4 {[%emt 0:00:57] [#]} 14. Nxa7+ $146 {[%emt 0:14:49]} ({Predecessor:} 14. Qxf4 Nxd5 15. Nxa7+ Kb8 16. cxd5 Kxa7 17. Rac1 Kb8 18. dxe6 fxe6 19. a4 Rhf8 20. Qc4 {½-½ Ivanova,A (2075)-Vlassow,V (2379) Chigorin Memorial 13th 2005 (1)}) 14... Kb8 {[%emt 0:01:37]} 15. Nc6+ $1 {[%emt 0:01:57] The position is equal.} bxc6 {[%emt 0:17:49]} 16. Qb3+ $1 {[%emt 0:03:42]} Kc8 {[%emt 0:00:55]} 17. Qa4 {[%emt 0:00:14][%cal Ra4a8] [#]} Kb8 {[%emt 0:03:22] Repels Qa8+} (17... exd5 $2 18. Qa8#) 18. Qb4+ {[%emt 0:05:39]} Kc8 {[%emt 0:00:24]} 19. Qa4 $1 {[%emt 0:00:30][%cal Ra4a8]} Kb8 {[%emt 0:06:39] Inhibits Qa8+.} (19... exd5 $2 20. Qa8#) 20. Qb4+ {[%emt 0:05:54]} Kc8 {[%emt 0:00:15]} 21. Qa4 $1 {[%emt 0:01:40][%cal Ra4a8] [#]} Bxh2+ {[%emt 0:03:46]} 22. Kh1 $1 {[%emt 0:00:58][%cal Ra4a8]} Kb8 {[%emt 0:00:53] Prevents Qa8+} 23. Qb4+ {[%emt 0:03:50]} Kc8 {[%emt 0:00:12]} 24. Qa4 $1 {[%emt 0:00:06][%cal Ra4a8]} Kb8 {[%emt 0:00:44] Repels Qa8+} 25. Qb4+ {[%emt 0:00:10]} Kc8 {[%emt 0:00:25]} 26. Qa4 $1 {[%emt 0:00:23][%cal Ra4a8]} Kb8 {[%emt 0:01:31] Wards off Qa8+.   Weighted Error Value: White=0.02 (flawless) /Black=0.01 (flawless)} 1/2-1/2

[Event "Polish Youth G18 Championship 2023"]
[Site "Jastrzebia Gora"]
[Date "2023.03.18"]
[Round "8.4"]
[White "Bugaj, Hanna"]
[Black "Bukala, Weronika"]
[Result "1/2-1/2"]
[ECO "A48"]
[WhiteElo "1639"]
[BlackElo "1899"]
[Annotator "NA RC COMBH"]
[PlyCount "109"]
[EventDate "2023.03.11"]
[EventType "swiss"]
[EventCountry "POL"]
[SourceTitle "playchess.com"]
[Source "ChessBase"]
[SourceQuality "1"]
[TimeControl "40/5400+30:1800+30"]

1. d4 {[%emt 0:00:04]} Nf6 {[%emt 0:00:21]} 2. Nf3 {[%emt 0:00:16]} g6 {[%emt 0:01:04]} 3. Nbd2 {[%emt 0:01:29]} d5 {[%emt 0:01:33]} 4. b4 {[%emt 0:04:34]} a5 {[%emt 0:08:03]} 5. b5 {[%emt 0:04:36]} Bg7 {[%emt 0:12:22]} 6. e3 {[%emt 0:04:15]} Bf5 {[%emt 0:02:12]} (6... c5 $11 {might be stronger.}) 7. Bd3 {[%emt 0:09:40]} Bxd3 {[%emt 0:07:43]} (7... Ne4 $11 {remains equal.} 8. Bb2 a4) 8. cxd3 {[%emt 0:00:09]} a4 {[%emt 0:00:25]} 9. Ba3 {[%emt 0:02:25]} O-O {[%emt 0:03:48]} 10. O-O {[%emt 0:00:39]} Re8 {[%emt 0:00:44]} (10... Qd7 $14) 11. Qc2 {[%emt 0:05:31]} Nfd7 {[%emt 0:03:29]} 12. Rfc1 {[%emt 0:03:14]} c6 {[%emt 0:00:12]} 13. Rab1 {[%emt 0:02:53]} Qc7 {[%emt 0:03:09]} 14. Rb4 {[%emt 0:08:15]} Nb6 {[%emt 0:02:19]} 15. Ne5 {[%emt 0:12:37]} f6 {[%emt 0:08:07]} 16. Qb2 {[%emt 0:20:22]} fxe5 {[%emt 0:02:38]} 17. bxc6 {[%emt 0:00:08]} Ra6 {[%emt 0:05:04]} 18. Rb1 {[%emt 0:00:51] [#]} exd4 $1 {[%emt 0:01:06]} 19. exd4 {[%emt 0:00:56]} Nxc6 $1 {[%emt 0:01:08]} 20. Rxb6 {[%emt 0:02:19]} Rxb6 {[%emt 0:10:42]} 21. Qxb6 {[%emt 0:00:08]} Qxb6 {[%emt 0:07:33]} 22. Rxb6 {[%emt 0:00:07]} Nxd4 {[%emt 0:00:33]} 23. Rxb7 {[%emt 0:03:30]} Rc8 {[%emt 0:00:05]} 24. Rb1 {[%emt 0:11:05]} Rc2 {[%emt 0:01:46]} 25. Nf3 {[%emt 0:01:32]} Nxf3+ {[%emt 0:06:25]} 26. gxf3 {[%emt 0:00:06]} Rxa2 {[%emt 0:00:40]} 27. Bxe7 {[%emt 0:00:48]} Rb2 {[%emt 0:02:08]} 28. Rc1 {[%emt 0:00:53]} Bd4 {[%emt 0:00:29]} 29. Bc5 {[%emt 0:01:01]} Bxc5 {[%emt 0:04:54]} 30. Rxc5 {[%emt 0:00:06]} a3 {[%emt 0:01:23]} 31. Ra5 {[%emt 0:00:10]} a2 {[%emt 0:01:20]} 32. Kg2 {[%emt 0:00:06]} Kg7 {[%emt 0:01:50]} 33. Ra6 {[%emt 0:00:24]} Kh6 {[%emt 0:00:56]} 34. f4 {[%emt 0:00:37]} Kh5 {[%emt 0:00:20]} 35. Kg3 {[%emt 0:00:24]} Rd2 {[%emt 0:00:25]} 36. f3 {[%emt 0:00:14]} Kh6 {[%emt 0:00:49]} 37. f5 {[%emt 0:00:41]} Kg7 {[%emt 0:00:12]} 38. f6+ {[%emt 0:00:19]} Kf7 {[%emt 0:00:09]} 39. h4 {[%emt 0:00:51]} Rxd3 {[%emt 0:00:39]} 40. Rxa2 {[%emt 0:00:00]} Kxf6 {[%emt 0:00:00]} 41. Ra7 {[%emt 0:06:05]} h5 {[%emt 0:02:13]} 42. Rd7 {[%emt 0:01:37]} Rd1 {[%emt 0:09:53]} 43. Kf4 {[%emt 0:02:10]} Ke6 {[%emt 0:00:30]} 44. Rd8 {[%emt 0:01:10]} Rg1 {[%emt 0:01:47]} 45. Ra8 {[%emt 0:02:51]} Kd6 {[%emt 0:01:01]} 46. Rd8+ {[%emt 0:01:15]} Kc6 $11 {[%emt 0:01:47]} 47. Ke5 {[%emt 0:04:15]} g5 {[%emt 0:01:22]} 48. Rd6+ {[%emt 0:02:44]} Kc7 {[%emt 0:00:07]} 49. Rxd5 {[%emt 0:00:12]} gxh4 {[%emt 0:01:05]} 50. Kf4 {[%emt 0:00:32]} Rb1 {[%emt 0:01:29]} 51. Rxh5 {[%emt 0:01:15]} Kd6 {[%emt 0:02:14]} 52. Rxh4 {[%emt 0:01:04]} Ke6 {[%emt 0:00:13]} 53. Rh6+ {[%emt 0:00:16]} Kf7 {[%emt 0:00:08]} 54. Ra6 {[%emt 0:00:20]} Rb5 {[%emt 0:00:14]} 55. Ke4 {[%emt 0:00:13]} 1/2-1/2

[Event "Polish Youth G18 Championship 2023"]
[Site "Jastrzebia Gora"]
[Date "2023.03.18"]
[Round "8.5"]
[White "Nowak, Roksana"]
[Black "Arciszewska, Zuzanna"]
[Result "1-0"]
[ECO "C78"]
[WhiteElo "1816"]
[BlackElo "1750"]
[Annotator "NA RC COMBH"]
[PlyCount "119"]
[EventDate "2023.03.11"]
[EventType "swiss"]
[EventCountry "POL"]
[SourceTitle "playchess.com"]
[Source "ChessBase"]
[SourceQuality "1"]
[TimeControl "40/5400+30:1800+30"]

1. e4 {[%emt 0:00:03]} e5 {[%emt 0:00:13]} 2. Nf3 {[%emt 0:00:08]} Nc6 {[%emt 0:00:08]} 3. Bb5 {[%emt 0:00:15]} a6 {[%emt 0:00:20]} 4. Ba4 {[%emt 0:00:06]} Nf6 {[%emt 0:00:42]} 5. O-O {[%emt 0:02:43]} b5 {[%emt 0:00:41]} 6. Bb3 {[%emt 0:00:06]} Bc5 {[%emt 0:01:01]} 7. c3 {[%emt 0:00:39]} d6 {[%emt 0:00:42]} 8. d4 {[%emt 0:00:23]} Bb6 {[%emt 0:01:02]} 9. a4 {[%emt 0:00:54]} Rb8 {[%emt 0:02:00]} 10. Qd3 {[%emt 0:01:14]} Bd7 {[%emt 0:20:37]} 11. d5 {[%emt 0:19:59]} Ne7 {[%emt 0:00:49]} 12. Bg5 {[%emt 0:01:56]} Ng6 {[%emt 0:01:26]} 13. Nh4 {[%emt 0:05:55]} (13. a5 $5 {[%cal Ra5b6]} Bc5 14. Nh4 $11) 13... h6 {[%emt 0:03:48]} 14. Nxg6 {[%emt 0:08:58]} fxg6 {[%emt 0:00:19]} 15. Be3 {[%emt 0:02:38]} O-O {[%emt 0:04:24]} 16. Bxb6 {[%emt 0:06:56]} Rxb6 {[%emt 0:01:07]} 17. a5 {[%emt 0:01:12]} Rb8 {[%emt 0:00:45]} 18. f4 {[%emt 0:03:11]} exf4 {[%emt 0:06:35]} 19. Rxf4 {[%emt 0:02:43]} Qe7 {[%emt 0:09:40]} ({Better is} 19... g5 $17 20. Rf1 Ng4) 20. Nd2 {[%emt 0:02:37]} g5 {[%emt 0:01:34]} 21. Rff1 {[%emt 0:02:12]} Ng4 {[%emt 0:05:41]} 22. Nf3 {[%emt 0:03:13]} Rbe8 {[%emt 0:02:48]} 23. Rae1 {[%emt 0:01:52]} Ne5 $11 {[%emt 0:05:00]} 24. Qd4 {[%emt 0:08:45]} Bg4 {[%emt 0:08:55]} 25. Nxe5 {[%emt 0:03:32]} Rxf1+ {[%emt 0:00:39]} 26. Rxf1 {[%emt 0:00:47]} Qxe5 {[%emt 0:00:11]} 27. Qf2 {[%emt 0:00:56]} Bh5 {[%emt 0:01:38]} 28. Bc2 {[%emt 0:01:36]} Bg6 {[%emt 0:01:17]} 29. Re1 {[%emt 0:05:55]} Qf4 {[%emt 0:06:28]} 30. Qxf4 {[%emt 0:04:47]} gxf4 {[%emt 0:00:08]} 31. Bd3 {[%emt 0:01:07]} Bf7 {[%emt 0:08:15]} 32. Kf2 {[%emt 0:01:45]} g5 {[%emt 0:00:56]} 33. c4 {[%emt 0:01:49]} bxc4 {[%emt 0:06:36]} 34. Bxc4 {[%emt 0:00:06]} Rb8 {[%emt 0:00:32]} 35. b3 {[%emt 0:03:44]} Be8 {[%emt 0:00:29]} 36. e5 {[%emt 0:00:43]} Bb5 {[%emt 0:00:27]} 37. exd6 {[%emt 0:01:20]} cxd6 {[%emt 0:00:10]} 38. Re6 {[%emt 0:01:21]} Kf7 {[%emt 0:00:53]} 39. Rxd6 {[%emt 0:00:56]} Bxc4 {[%emt 0:00:31]} 40. bxc4 {[%emt 0:00:00]} g4 {[%emt 0:00:00]} 41. Rb6 {[%emt 0:13:17]} Rc8 {[%emt 0:02:13] [#]} 42. Rb4 $1 {[%emt 0:03:47]} ({Weaker is} 42. Rxh6 Rxc4 43. Rxa6 Rc2+ 44. Ke1 Rxg2 $11) 42... Rc5 {[%emt 0:00:40]} 43. Ra4 {[%emt 0:01:03]} Kf6 {[%emt 0:00:26]} 44. Ke2 {[%emt 0:00:12]} Kf5 {[%emt 0:03:13]} 45. Kd3 {[%emt 0:00:16]} Rc8 {[%emt 0:04:56]} 46. Ra2 {[%emt 0:03:30]} f3 {[%emt 0:02:25]} 47. Rd2 {[%emt 0:08:26]} Ke5 {[%emt 0:04:55]} 48. gxf3 {[%emt 0:00:33]} gxf3 {[%emt 0:00:03]} 49. Ke3 {[%emt 0:01:34]} Kd6 {[%emt 0:07:24]} 50. Kd4 {[%emt 0:00:53]} Rg8 {[%emt 0:00:44]} 51. c5+ {[%emt 0:00:30]} Kc7 {[%emt 0:00:29]} 52. Ke3 {[%emt 0:00:21]} Rf8 {[%emt 0:01:08]} 53. Rf2 {[%emt 0:00:07]} Rf5 {[%emt 0:01:20]} 54. Ke4 {[%emt 0:00:20]} Rh5 {[%emt 0:00:10]} 55. Rxf3 {[%emt 0:00:52]} Rxh2 {[%emt 0:00:03]} 56. Rf7+ {[%emt 0:00:06]} Kd8 {[%emt 0:00:04]} 57. Ke5 {[%emt 0:00:11]} Rg2 {[%emt 0:00:31]} 58. c6 {[%emt 0:02:02]} h5 {[%emt 0:00:25]} 59. Rh7 {[%emt 0:00:40]} Rg5+ {[%emt 0:01:28]} 60. Kd6 {[%emt 0:00:06]} 1-0

[Event "Polish Youth G18 Championship 2023"]
[Site "Jastrzebia Gora"]
[Date "2023.03.18"]
[Round "8.6"]
[White "Barwinska, Ewa"]
[Black "Bialek, Alicja"]
[Result "1-0"]
[ECO "D00"]
[WhiteElo "1963"]
[BlackElo "1576"]
[Annotator "TA"]
[PlyCount "47"]
[EventDate "2023.03.11"]
[EventType "swiss"]
[EventCountry "POL"]
[SourceTitle "playchess.com"]
[Source "ChessBase"]
[SourceQuality "1"]
[TimeControl "40/5400+30:1800+30"]

{[%evp 9,47,14,25,-20,-21,-33,37,-43,36,33,15,16,70,0,6,7,1,6,77,79,92,83,78,10,0,13,99,89,424,70,107,-40,689,75,90,95,96,91,1614,1490]} 1. d4 {[%emt 0:00:02][%cal Bd2d4,Bd4d5][%mdl 32]} d5 {[%emt 0:01:30]} 2. Nc3 {[%emt 0:00:07]} c5 {[%emt 0:03:58]} 3. e4 {[%emt 0:13:39]} dxe4 {[%emt 0:03:21]} 4. d5 {[%emt 0:02:16]} f5 {[%emt 0:36:02]} 5. Bf4 {[%emt 0:06:02] [#]} a6 $146 {[%emt 0:02:21]} ({Predecessor:} 5... Nf6 6. Qd2 a6 7. a4 Nbd7 8. Bc4 Nh5 9. Nge2 Nxf4 10. Nxf4 Ne5 11. Be2 Qd6 {0-1 Sigurdsson,S (2000)-Danielsson,S (1721) ISL-ch Online Rapid 2020 (6)}) 6. a4 {[%emt 0:03:25] D00: 1 d4 d5: Unusual lines.} (6. f3 {with more complications.} Nf6 7. Nh3 e5 8. dxe6 Nc6 9. Qxd8+ Nxd8 10. O-O-O) 6... Nf6 {[%emt 0:04:03]} 7. Bc4 {[%emt 0:04:15] [#]} e6 {[%emt 0:05:09]} 8. Nge2 {[%emt 0:15:00]} (8. dxe6 $14 Nc6 9. Bg5) 8... exd5 {[%emt 0:02:32]} (8... e5 $1 $15 9. Bxe5 Bd6) 9. Nxd5 $14 {[%emt 0:00:38]} Nxd5 {[%emt 0:00:53]} 10. Bxd5 {[%emt 0:00:01][%cal Od5f7] Bf7+! would be deadly.} Nd7 {[%emt 0:06:40]} ({Black should try} 10... Nc6 $11) 11. c3 {[%emt 0:08:35] White has more active pieces. The black rooks are badly placed.} (11. Nc3 $14) 11... Be7 $11 {[%emt 0:07:28]} 12. Qb3 $36 {[%emt 0:03:43][%cal Od5g8][%mdl 2048] White has the initiative.} Qb6 {[%emt 0:02:03]} 13. Qa2 {[%emt 0:00:42]} Rf8 {[%emt 0:04:58]} (13... g5 $11 14. a5 Qf6) 14. a5 {[%emt 0:01:53]} Qf6 {[%emt 0:00:40]} 15. O-O-O {[%emt 0:03:25] And now Qa4 would win.} (15. Qa4 {feels hotter.} Kd8 16. Bg3 Ne5 17. O-O-O) 15... Ne5 {[%emt 0:07:58]} 16. Bxe5 {[%emt 0:09:01]} ({White should play} 16. Rhe1 $16) 16... Qxe5 {[%emt 0:00:18]} 17. f3 {[%emt 0:07:06]} Bg5+ {[%emt 0:05:25]} (17... exf3 $11 18. Bxf3 Be6 19. Qa4+ Kf7) 18. Kb1 $16 {[%emt 0:00:25][%cal Of3f4] Black must now prevent f4!} Rf6 $2 {[%emt 0:03:33][%mdl 8192] [#]} (18... Be7 $16 {is a better chance.}) 19. Qc4 $2 {[%emt 0:04:17]} ({White has to play} 19. f4 $1 $18 {[%cal Rf4e5]} Bxf4 20. Nxf4 Qxf4 21. Bxb7 Bxb7 22. Qg8+ Ke7 23. Qxg7+ Rf7 24. Rd7+ {[%mdl 64] Decoy} Kxd7 25. Qxf7+ Kc8 26. Qe8+ Kc7 27. Qe7+ Kb8 28. Qd8+ Bc8 29. Qb6+ Bb7 30. Rd1 (30. Qxc5 e3 $17)) 19... exf3 20. Bxf3 {[%emt 0:00:54]} (20. gxf3 $16 {Strongly threatening f4.} Qc7 21. Ng3) 20... Rb8 $2 {[%emt 0:01:07][%mdl 8192]} (20... Be6 $15 21. Qd3 Qc7) 21. Rhe1 $2 {[%emt 0:01:04]} (21. Qg8+ $18 {and the rest is easy.} Rf8 22. Qxh7) 21... Be6 {[%emt 0:00:15]} 22. Qa4+ {[%emt 0:01:16]} Kf8 {[%emt 0:00:30]} 23. Nd4 $1 {[%emt 0:03:18]} Qxh2 {[%emt 0:00:41][%mdl 8192]} 24. Nxe6+ {[%emt 0:00:32] Weighted Error Value: White=1.02/Black=0.68} 1-0